[Event "VI Sunway Sitges Open 2019"]
[Site "Sitges"]
[Date "2019.12.13"]
[Round "1.7"]
[White "Paszewski, Mateusz"]
[Black "Edouard, Romain"]
[Result "0-1"]
[ECO "B51"]
[WhiteElo "2251"]
[BlackElo "2653"]
[Annotator "RC"]
[PlyCount "96"]
[EventDate "2019.12.13"]
[EventType "swiss"]
[EventCountry "ESP"]
[SourceTitle "playchess.com"]
[Source "ChessBase"]
[SourceQuality "1"]
[TimeControl "40/5400+30:1800+30"]

1. e4 {[%emt 0:00:04]} c5 {[%emt 0:00:00]} 2. Nf3 {[%emt 0:00:32]} d6 {[%emt 0:00:45]} 3. Bb5+ {[%emt 0:00:10]} Nd7 {[%emt 0:00:12]} 4. d4 {[%emt 0:00:22]} cxd4 {[%emt 0:00:00]} 5. Qxd4 {[%emt 0:00:05]} a6 {[%emt 0:00:06]} 6. Bxd7+ {[%emt 0:00:00]} Qxd7 {[%emt 0:00:47]} 7. Nc3 {[%emt 0:00:10]} e5 {[%emt 0:00:18]} 8. Qd3 {[%emt 0:00:35]} Qc6 {[%emt 0:00:57]} 9. O-O {[%emt 0:00:17]} Be6 {[%emt 0:01:02]} 10. Rd1 {[%emt 0:01:40]} Rc8 {[%emt 0:00:00]} 11. a4 {[%emt 0:05:29]} h6 {[%emt 0:00:00]} 12. Nd2 {[%emt 0:02:47]} Nf6 {[%emt 0:00:00]} 13. Nf1 {[%emt 0:00:11]} Be7 {[%emt 0:00:00]} 14. Ne3 {[%emt 0:00:31]} O-O {[%emt 0:17:18]} 15. Ncd5 {[%emt 0:00:21]} Bxd5 {[%emt 0:00:00]} 16. exd5 {[%emt 0:17:04]} Qd7 {[%emt 0:00:00]} 17. Nf5 {[%emt 0:01:43]} Kh8 {[%emt 0:00:00]} 18. c4 {[%emt 0:09:47]} Rfe8 {[%emt 0:21:40]} 19. Nxe7 {[%emt 0:04:46]} Qxe7 {[%emt 0:00:00]} 20. b3 {[%emt 0:18:35]} Nd7 21. Ba3 {[%emt 0:01:57]} a5 {[%emt 0:07:05]} 22. Qc3 {[%emt 0:03:54]} Ra8 {[%emt 0:03:51]} 23. Rac1 {[%emt 0:06:37]} b6 {[%emt 0:00:00]} 24. Re1 {[%emt 0:02:50]} f5 {[%emt 0:03:22]} 25. Qh3 {[%emt 0:01:41]} Qf6 {[%emt 0:02:27]} 26. Rc2 {[%emt 0:01:14]} g5 {[%emt 0:02:15]} 27. Rce2 {[%emt 0:02:55]} Kh7 {[%emt 0:00:00]} 28. Qd3 {[%emt 0:05:14]} Nc5 {[%emt 0:01:12]} 29. Qc2 {[%emt 0:00:42]} Qg6 {[%emt 0:02:18]} 30. Qc3 {[%emt 0:01:05]} f4 {[%emt 0:03:14]} 31. Bxc5 {[%emt 0:00:04]} bxc5 {[%emt 0:01:40]} 32. Qc2 {[%emt 0:05:49]} Rab8 {[%emt 0:00:00]} 33. Qxg6+ {[%emt 0:00:15]} Kxg6 {[%emt 0:00:00]} 34. Rb2 {[%emt 0:00:13]} e4 {[%emt 0:00:57]} 35. Kf1 {[%emt 0:00:48]} Kf5 {[%emt 0:01:11]} 36. Ke2 {[%emt 0:05:54]} h5 {[%emt 0:00:49]} 37. Kd2 {[%emt 0:00:00]} h4 38. Kc3 {[%emt 0:02:59]} h3 {[%emt 0:01:34]} 39. g3 {[%emt 0:04:03]} Kg4 {[%emt 0:01:42]} 40. gxf4 {[%emt 0:00:00]} gxf4 {[%emt 0:00:13]} 41. Rg1+ {[%emt 0:00:06]} Kf3 {[%emt 0:00:00]} 42. Rg6 {[%emt 0:00:29]} Rbd8 {[%emt 0:00:00]} 43. Rh6 {[%emt 0:00:27]} Rh8 {[%emt 0:00:00]} 44. Re6 {[%emt 0:00:00]} Rdg8 {[%emt 0:00:53]} 45. Rxd6 {[%emt 0:00:00]} Rg2 46. Re6 {[%emt 0:00:15]} Rxh2 {[%emt 0:00:00]} 47. d6 {[%emt 0:00:00]} Rh1 {[%emt 0:00:58]} 48. d7 {[%emt 0:00:23]} Rd8 {[%emt 0:00:03] Kd4} 0-1

[Event "VI Sunway Sitges Open 2019"]
[Site "Sitges"]
[Date "2019.12.13"]
[Round "1.21"]
[White "Karthik Rajaa"]
[Black "Gareyev, Timur"]
[Result "0-1"]
[ECO "A81"]
[WhiteElo "2212"]
[BlackElo "2598"]
[Annotator "ChessBase"]
[PlyCount "68"]
[EventDate "2019.12.13"]
[EventType "swiss"]
[EventCountry "ESP"]
[SourceTitle "playchess.com"]
[Source "ChessBase"]
[SourceQuality "1"]
[TimeControl "40/5400+30:1800+30"]

1. Nf3 {[%emt 0:17:41]} d6 {[%emt 0:00:13]} 2. d4 {[%emt 0:00:07]} f5 {[%emt 0:00:07]} 3. g3 {[%emt 0:01:54]} Nf6 {[%emt 0:00:03]} 4. Bg2 {[%emt 0:00:06]} g6 {[%emt 0:00:03]} 5. O-O {[%emt 0:00:08]} Bg7 {[%emt 0:00:05]} 6. b3 {[%emt 0:01:06]} a5 {[%emt 0:01:37]} 7. c4 {[%emt 0:01:30]} O-O {[%emt 0:02:25]} 8. Nc3 {[%emt 0:01:43]} Nc6 {[%emt 0:02:19]} 9. Bb2 {[%emt 0:03:43]} Ne4 {[%emt 0:01:18]} 10. Rc1 {[%emt 0:12:30]} e5 {[%emt 0:05:08]} 11. dxe5 {[%emt 0:04:02]} Nxc3 {[%emt 0:02:20]} 12. Bxc3 {[%emt 0:00:09]} dxe5 {[%emt 0:00:03]} 13. Qd5+ {[%emt 0:00:17]} Kh8 {[%emt 0:00:08]} 14. Qxd8 {[%emt 0:02:08]} Rxd8 {[%emt 0:00:02]} 15. Ng5 {[%emt 0:00:22]} Re8 {[%emt 0:00:40]} 16. Nf7+ {[%emt 0:21:01]} Kg8 {[%emt 0:00:25]} 17. Bd5 {[%emt 0:00:18]} Kf8 {[%emt 0:00:13]} 18. Ng5 {[%emt 0:04:35]} h6 {[%emt 0:01:31]} 19. Bxc6 {[%emt 0:00:05]} bxc6 {[%emt 0:00:01]} 20. Nf3 {[%emt 0:00:18]} g5 {[%emt 0:00:53]} 21. Rfd1 {[%emt 0:06:08]} f4 {[%emt 0:00:14]} 22. Ne1 {[%emt 0:01:56]} a4 {[%emt 0:04:25]} 23. Nd3 {[%emt 0:01:45]} e4 {[%emt 0:16:00]} 24. Nb4 {[%emt 0:02:24]} axb3 {[%emt 0:02:26]} 25. axb3 {[%emt 0:00:07]} Bg4 {[%emt 0:02:55]} 26. Bxg7+ {[%emt 0:12:26]} Kxg7 {[%emt 0:00:02]} 27. Nxc6 {[%emt 0:00:44]} Ra2 {[%emt 0:01:12]} 28. Ra1 {[%emt 0:07:39]} Rxe2 {[%emt 0:03:22]} 29. Ra7 {[%emt 0:00:03]} e3 {[%emt 0:02:43]} 30. Rxc7+ {[%emt 0:00:13]} Kg6 {[%emt 0:01:00]} 31. fxe3 {[%emt 0:05:05]} fxg3 {[%emt 0:00:50]} 32. hxg3 {[%emt 0:00:36]} R8xe3 {[%emt 0:00:52]} 33. Rd6+ {[%emt 0:05:06]} Kh5 {[%emt 0:00:53]} 34. Re7 {[%emt 0:01:39]} Rxg3+ {[%emt 0:00:46]} 0-1

[Event "VI Sunway Sitges Open 2019"]
[Site "Sitges"]
[Date "2019.12.13"]
[Round "1.22"]
[White "Svane, Rasmus"]
[Black "Zherebtsova, Alexandra"]
[Result "1-0"]
[ECO "A11"]
[WhiteElo "2597"]
[BlackElo "2209"]
[Annotator "ChessBase"]
[PlyCount "75"]
[EventDate "2019.12.13"]
[EventType "swiss"]
[EventCountry "ESP"]
[SourceTitle "playchess.com"]
[Source "ChessBase"]
[SourceQuality "1"]
[TimeControl "40/5400+30:1800+30"]

1. Nf3 {[%emt 0:00:00]} d5 {[%emt 0:00:00]} 2. g3 {[%emt 0:00:00]} g6 {[%emt 0:00:00]} 3. c4 {[%emt 0:00:00]} c6 {[%emt 0:03:35]} 4. Qa4 {[%emt 0:00:28]} dxc4 {[%emt 0:01:54]} 5. Qxc4 {[%emt 0:00:17]} Bg7 {[%emt 0:01:02]} 6. Bg2 {[%emt 0:07:06]} e5 {[%emt 0:06:59]} 7. d3 {[%emt 0:05:37]} Ne7 {[%emt 0:08:02]} 8. O-O {[%emt 0:02:30]} O-O {[%emt 0:08:47]} 9. Rd1 {[%emt 0:04:13]} Be6 {[%emt 0:09:43]} 10. Qc2 {[%emt 0:00:18]} Nf5 {[%emt 0:03:22]} 11. e3 {[%emt 0:02:58]} Na6 {[%emt 0:04:59]} 12. Nc3 {[%emt 0:03:55]} h6 {[%emt 0:01:22]} 13. b3 {[%emt 0:03:09]} Qa5 {[%emt 0:08:15]} 14. Bb2 {[%emt 0:01:36]} Rfd8 {[%emt 0:01:48]} 15. Ne2 {[%emt 0:10:35]} Nb4 {[%emt 0:06:13]} 16. Qb1 {[%emt 0:01:30]} e4 {[%emt 0:02:24]} 17. Ne1 {[%emt 0:06:26]} exd3 {[%emt 0:08:29]} 18. Nf4 {[%emt 0:00:07]} d2 {[%emt 0:01:36]} 19. Nf3 {[%emt 0:03:27]} Bxb2 {[%emt 0:02:06]} 20. Qxb2 {[%emt 0:00:07]} Nd3 {[%emt 0:00:26]} 21. Nxd3 {[%emt 0:02:00]} Rxd3 {[%emt 0:00:06]} 22. Ne5 {[%emt 0:08:12]} Rd6 {[%emt 0:04:24]} 23. Ng4 {[%emt 0:00:24]} Rad8 {[%emt 0:03:32]} 24. Nf6+ {[%emt 0:09:37]} Kf8 {[%emt 0:00:15]} 25. Ne4 {[%emt 0:00:16]} R6d7 {[%emt 0:03:53]} 26. b4 {[%emt 0:00:28]} Qc7 {[%emt 0:00:47]} 27. Qh8+ {[%emt 0:06:38]} Ke7 {[%emt 0:00:03]} 28. Qf6+ {[%emt 0:00:06]} Kf8 {[%emt 0:00:04]} 29. Nc5 {[%emt 0:01:37]} Rd6 {[%emt 0:05:58]} 30. Rxd2 {[%emt 0:05:49]} Ng7 {[%emt 0:00:20]} 31. Qe5 {[%emt 0:04:40]} Qb8 {[%emt 0:04:00]} 32. Rxd6 {[%emt 0:03:44]} Rxd6 {[%emt 0:00:19]} 33. Nxe6+ {[%emt 0:01:18]} fxe6 {[%emt 0:00:06]} 34. Qf6+ {[%emt 0:00:20]} Kg8 {[%emt 0:00:03]} 35. Qxg6 {[%emt 0:00:12]} e5 {[%emt 0:00:03]} 36. Qe4 {[%emt 0:00:25]} Rd2 {[%emt 0:00:08]} 37. Qc4+ {[%emt 0:01:41]} Kh8 {[%emt 0:00:06]} 38. Qf7 {[%emt 0:00:57]} 1-0

[Event "VI Sunway Sitges Open 2019"]
[Site "Sitges"]
[Date "2019.12.13"]
[Round "1.23"]
[White "Ajay Karthikeyan"]
[Black "Liang, Awonder"]
[Result "1/2-1/2"]
[ECO "C67"]
[WhiteElo "2203"]
[BlackElo "2593"]
[Annotator "ChessBase"]
[PlyCount "63"]
[EventDate "2019.12.13"]
[EventType "swiss"]
[EventCountry "ESP"]
[SourceTitle "playchess.com"]
[Source "ChessBase"]
[SourceQuality "1"]
[TimeControl "40/5400+30:1800+30"]

1. e4 {[%emt 0:00:00]} e5 {[%emt 0:00:00]} 2. Nf3 {[%emt 0:00:00]} Nc6 {[%emt 0:00:00]} 3. Bb5 {[%emt 0:00:00]} Nf6 {[%emt 0:00:01]} 4. O-O {[%emt 0:00:13]} Nxe4 {[%emt 0:00:08]} 5. Re1 {[%emt 0:00:10]} Nd6 {[%emt 0:00:25]} 6. Nxe5 {[%emt 0:00:06]} Be7 {[%emt 0:00:09]} 7. Bf1 {[%emt 0:00:04]} Nf5 {[%emt 0:00:32]} 8. Nf3 {[%emt 0:00:06]} O-O {[%emt 0:00:40]} 9. d4 {[%emt 0:00:10]} d5 {[%emt 0:00:07]} 10. Nc3 {[%emt 0:00:04]} Bb4 {[%emt 0:11:23]} 11. h3 {[%emt 0:13:13]} Nd6 {[%emt 0:08:40]} 12. Bg5 {[%emt 0:06:30]} f6 {[%emt 0:02:01]} 13. Bd2 {[%emt 0:04:22]} Bxc3 {[%emt 0:00:56]} 14. Bxc3 {[%emt 0:01:38]} Bf5 {[%emt 0:00:43]} 15. Nh4 {[%emt 0:07:56]} Be4 {[%emt 0:02:10]} 16. f3 {[%emt 0:02:23]} Bg6 {[%emt 0:10:14]} 17. Nxg6 {[%emt 0:01:16]} hxg6 {[%emt 0:00:07]} 18. Bd3 {[%emt 0:04:12]} Nf5 {[%emt 0:06:19]} 19. Bxf5 {[%emt 0:11:37]} gxf5 {[%emt 0:00:07]} 20. Qd3 {[%emt 0:00:08]} Qd7 {[%emt 0:03:58]} 21. Re2 {[%emt 0:00:10]} Rae8 {[%emt 0:05:16]} 22. Rae1 {[%emt 0:02:09]} Kf7 {[%emt 0:00:20]} 23. Bd2 {[%emt 0:03:34]} Rxe2 {[%emt 0:02:42]} 24. Rxe2 {[%emt 0:00:32]} Re8 {[%emt 0:00:09]} 25. Rxe8 {[%emt 0:00:41]} Kxe8 {[%emt 0:00:07]} 26. h4 {[%emt 0:02:20]} a6 {[%emt 0:08:12]} 27. Kf2 {[%emt 0:08:18]} Kf7 {[%emt 0:03:51]} 28. h5 {[%emt 0:04:23]} Ne7 {[%emt 0:01:06]} 29. Bf4 {[%emt 0:03:51]} g6 {[%emt 0:07:34]} 30. hxg6+ {[%emt 0:01:10]} Nxg6 {[%emt 0:00:14]} 31. Bd2 {[%emt 0:03:35]} Kg7 {[%emt 0:00:30]} 32. b3 {[%emt 0:02:11]} 1/2-1/2

[Event "VI Sunway Sitges Open 2019"]
[Site "Sitges"]
[Date "2019.12.13"]
[Round "1.24"]
[White "Praggnanandhaa R"]
[Black "Pena Morales, Hugo"]
[Result "1-0"]
[ECO "B51"]
[WhiteElo "2586"]
[BlackElo "2203"]
[Annotator "ChessBase"]
[PlyCount "91"]
[EventDate "2019.12.13"]
[EventType "swiss"]
[EventCountry "ESP"]
[SourceTitle "playchess.com"]
[Source "ChessBase"]
[SourceQuality "1"]
[TimeControl "40/5400+30:1800+30"]

1. e4 {[%emt 0:00:00]} c5 {[%emt 0:00:00]} 2. Nf3 {[%emt 0:00:00]} d6 {[%emt 0:00:00]} 3. Bb5+ {[%emt 0:00:04]} Nc6 {[%emt 0:00:03]} 4. O-O {[%emt 0:00:52]} Bd7 {[%emt 0:00:07]} 5. Re1 {[%emt 0:00:32]} a6 {[%emt 0:00:42]} 6. Bf1 {[%emt 0:02:48]} e6 {[%emt 0:01:03]} 7. c3 {[%emt 0:03:35]} Nf6 {[%emt 0:01:57]} 8. d4 {[%emt 0:03:50]} cxd4 {[%emt 0:00:23]} 9. cxd4 {[%emt 0:00:10]} d5 {[%emt 0:00:10]} 10. e5 {[%emt 0:06:14]} Ne4 {[%emt 0:00:08]} 11. Nbd2 {[%emt 0:03:36]} Nxd2 {[%emt 0:10:44]} 12. Bxd2 {[%emt 0:00:06]} Be7 {[%emt 0:00:18]} 13. Bd3 {[%emt 0:03:08]} Qb6 {[%emt 0:09:45]} 14. Bc3 {[%emt 0:05:04]} Rc8 {[%emt 0:01:23]} 15. Rc1 {[%emt 0:01:55]} O-O {[%emt 0:03:30]} 16. Bb1 {[%emt 0:03:43]} f5 {[%emt 0:11:53]} 17. exf6 {[%emt 0:01:09]} Rxf6 {[%emt 0:00:26]} 18. Qd3 {[%emt 0:03:03]} g6 {[%emt 0:01:56]} 19. Ng5 {[%emt 0:07:21]} h6 {[%emt 0:07:52]} 20. Nf3 {[%emt 0:01:47]} Bf8 {[%emt 0:04:28]} 21. h4 {[%emt 0:11:21]} Bg7 {[%emt 0:04:54]} 22. h5 {[%emt 0:01:44]} Rcf8 {[%emt 0:00:32]} 23. Re3 {[%emt 0:06:57]} Ne7 {[%emt 0:07:42]} 24. Qd2 {[%emt 0:02:02]} Nc6 {[%emt 0:06:40]} 25. Bxg6 {[%emt 0:03:25]} Rf4 {[%emt 0:00:05]} 26. Bb1 {[%emt 0:08:55]} Rxf3 {[%emt 0:04:13]} 27. Rxf3 {[%emt 0:00:35]} Rxf3 {[%emt 0:00:06]} 28. gxf3 {[%emt 0:00:07]} Nxd4 {[%emt 0:00:10]} 29. Qe3 {[%emt 0:03:17]} e5 {[%emt 0:06:20]} 30. Bxd4 {[%emt 0:01:11]} exd4 {[%emt 0:02:22]} 31. Qe7 {[%emt 0:00:23]} Qf6 {[%emt 0:00:09]} 32. Qxf6 {[%emt 0:04:22]} Bxf6 {[%emt 0:00:01]} 33. Bd3 {[%emt 0:00:32]} Bc6 {[%emt 0:03:32]} 34. Bxa6 {[%emt 0:01:34]} d3 {[%emt 0:01:14]} 35. Bxd3 {[%emt 0:00:11]} Bxb2 {[%emt 0:00:03]} 36. Rb1 {[%emt 0:00:59]} Ba3 {[%emt 0:00:56]} 37. Bb5 {[%emt 0:03:05]} Kf7 {[%emt 0:00:14]} 38. Bxc6 {[%emt 0:00:54]} bxc6 {[%emt 0:00:01]} 39. Rb6 {[%emt 0:00:47]} c5 {[%emt 0:00:07]} 40. Rxh6 {[%emt 0:00:00]} c4 {[%emt 0:00:00]} 41. Kf1 {[%emt 0:03:09]} Ke7 {[%emt 0:05:50]} 42. Ra6 {[%emt 0:02:07]} Bb4 {[%emt 0:01:44]} 43. h6 {[%emt 0:00:53]} Kf7 {[%emt 0:01:58]} 44. h7 {[%emt 0:00:24]} Kg7 {[%emt 0:00:10]} 45. Ra7+ {[%emt 0:00:05]} Kh8 {[%emt 0:00:02]} 46. Rd7 {[%emt 0:00:11]} 1-0

[Event "VI Sunway Sitges Open 2019"]
[Site "Sitges"]
[Date "2019.12.13"]
[Round "1.25"]
[White "Odnorozhenko, Evgenyi"]
[Black "Santos Latasa, Jaime"]
[Result "0-1"]
[ECO "B51"]
[WhiteElo "2201"]
[BlackElo "2585"]
[Annotator "ChessBase"]
[PlyCount "132"]
[EventDate "2019.12.13"]
[EventType "swiss"]
[EventCountry "ESP"]
[SourceTitle "playchess.com"]
[Source "ChessBase"]
[SourceQuality "1"]
[TimeControl "40/5400+30:1800+30"]

1. e4 {[%emt 0:00:00]} c5 {[%emt 0:00:00]} 2. Nf3 {[%emt 0:00:00]} d6 {[%emt 0:00:16]} 3. Bb5+ {[%emt 0:00:00]} Nd7 {[%emt 0:00:00]} 4. d4 {[%emt 0:00:20]} cxd4 {[%emt 0:00:00]} 5. Qxd4 {[%emt 0:00:06]} a6 {[%emt 0:00:00]} 6. Bxd7+ {[%emt 0:00:06]} Bxd7 {[%emt 0:00:30]} 7. c4 {[%emt 0:00:27]} Nf6 {[%emt 0:00:00]} 8. O-O {[%emt 0:00:32]} g6 {[%emt 0:02:58]} 9. e5 {[%emt 0:00:14]} dxe5 {[%emt 0:00:00]} 10. Nxe5 {[%emt 0:00:50]} Be6 {[%emt 0:01:33]} 11. Qh4 {[%emt 0:04:59]} Qa5 {[%emt 0:00:25]} 12. Nf3 {[%emt 0:03:23]} Qh5 {[%emt 0:02:56]} 13. b3 {[%emt 0:02:48]} Qxh4 {[%emt 0:00:00]} 14. Nxh4 {[%emt 0:00:11]} Bg7 {[%emt 0:00:00]} 15. Bb2 {[%emt 0:00:15]} O-O {[%emt 0:00:21]} 16. Nf3 {[%emt 0:00:42]} Rfd8 {[%emt 0:01:00]} 17. Nbd2 {[%emt 0:01:07]} Bh6 {[%emt 0:02:15]} 18. Rfd1 {[%emt 0:02:32]} Bg4 {[%emt 0:00:00]} 19. h3 {[%emt 0:00:58]} Rxd2 {[%emt 0:04:08]} 20. hxg4 {[%emt 0:06:36]} Rxb2 {[%emt 0:00:00]} 21. g5 {[%emt 0:00:05]} Bf8 {[%emt 0:00:00]} 22. gxf6 {[%emt 0:01:17]} exf6 {[%emt 0:00:00]} 23. Rdb1 {[%emt 0:01:45]} Rc2 {[%emt 0:00:00]} 24. Rc1 {[%emt 0:01:27]} Rxc1+ {[%emt 0:00:28]} 25. Rxc1 {[%emt 0:00:08]} Rd8 {[%emt 0:00:31]} 26. Kf1 {[%emt 0:00:56]} f5 {[%emt 0:01:06]} 27. Ke2 {[%emt 0:01:10]} Kg7 {[%emt 0:00:00]} 28. Ne1 {[%emt 0:01:14]} Re8+ {[%emt 0:00:00]} 29. Kf1 {[%emt 0:00:32]} Kf6 {[%emt 0:00:00]} 30. Nd3 {[%emt 0:00:12]} h5 {[%emt 0:02:54]} 31. b4 {[%emt 0:06:49]} h4 {[%emt 0:01:12]} 32. c5 {[%emt 0:00:25]} g5 {[%emt 0:00:15]} 33. c6 {[%emt 0:00:08]} bxc6 {[%emt 0:00:10]} 34. Rxc6+ {[%emt 0:00:02]} Re6 {[%emt 0:00:13]} 35. Rc8 {[%emt 0:00:30]} Bd6 {[%emt 0:00:48]} 36. a4 {[%emt 0:00:00]} Ke7 37. Rg8 {[%emt 0:02:52]} g4 {[%emt 0:00:16]} 38. Rh8 {[%emt 0:00:24]} Re4 {[%emt 0:00:31]} 39. Rxh4 {[%emt 0:00:26]} Bxb4 {[%emt 0:08:59]} 40. Rh5 {[%emt 0:01:36]} Ke6 {[%emt 0:01:39]} 41. f3 {[%emt 0:00:13]} Rd4 {[%emt 0:01:30]} 42. Nxb4 {[%emt 0:00:19]} Rxb4 {[%emt 0:00:00]} 43. fxg4 {[%emt 0:00:28]} Rf4+ {[%emt 0:00:13]} 44. Kg1 {[%emt 0:07:00]} Rxg4 {[%emt 0:00:15]} 45. Rh6+ {[%emt 0:00:03]} f6 {[%emt 0:00:12]} 46. Rh8 {[%emt 0:00:18]} Rxa4 {[%emt 0:00:12]} 47. Re8+ {[%emt 0:00:07]} Kf7 {[%emt 0:00:08]} 48. Ra8 {[%emt 0:00:47]} f4 {[%emt 0:00:30]} 49. Kf2 {[%emt 0:00:11]} Kg6 {[%emt 0:00:42]} 50. Ra7 {[%emt 0:00:35]} Kf5 {[%emt 0:00:19]} 51. Kf3 {[%emt 0:00:07]} Ra3+ {[%emt 0:00:03]} 52. Kf2 {[%emt 0:00:12]} a5 {[%emt 0:00:17]} 53. Ra6 {[%emt 0:00:33]} a4 {[%emt 0:00:39]} 54. Ra7 {[%emt 0:06:38]} Ke4 {[%emt 0:01:55]} 55. Re7+ {[%emt 0:00:00]} Kd5 {[%emt 0:00:29]} 56. Rd7+ {[%emt 0:01:02]} Kc4 {[%emt 0:00:55]} 57. Rc7+ {[%emt 0:00:25]} Kb3 {[%emt 0:00:05]} 58. Rb7+ {[%emt 0:00:11]} Kc2 {[%emt 0:07:10]} 59. Rb4 Ra1 {[%emt 0:06:46]} 60. Rxf4 {[%emt 0:00:00]} a3 61. Rxf6 {[%emt 0:01:30]} Rb1 {[%emt 0:00:00]} 62. Ra6 {[%emt 0:00:00]} Kb2 {[%emt 0:00:19]} 63. g4 {[%emt 0:00:02]} a2 {[%emt 0:00:11]} 64. g5 {[%emt 0:00:00]} a1=Q {[%emt 0:00:00]} 65. Rxa1 {[%emt 0:00:07]} Rxa1 {[%emt 0:00:12]} 66. Ke3 {[%emt 0:00:00]} Ra4 {[%emt 0:00:03] Kd4} 0-1

[Event "VI Sunway Sitges Open 2019"]
[Site "Sitges"]
[Date "2019.12.13"]
[Round "1.26"]
[White "Puranik, Abhimanyu"]
[Black "Rego, Pedro Filipe"]
[Result "1-0"]
[ECO "B23"]
[WhiteElo "2580"]
[BlackElo "2201"]
[Annotator "ChessBase"]
[PlyCount "77"]
[EventDate "2019.12.13"]
[EventType "swiss"]
[EventCountry "ESP"]
[SourceTitle "playchess.com"]
[Source "ChessBase"]
[SourceQuality "1"]
[TimeControl "40/5400+30:1800+30"]

1. e4 {[%emt 0:00:17]} c5 {[%emt 0:00:17]} 2. Nc3 {[%emt 0:00:06]} Nc6 {[%emt 0:00:11]} 3. Bb5 {[%emt 0:01:14]} g6 {[%emt 0:00:08]} 4. Bxc6 {[%emt 0:00:13]} bxc6 {[%emt 0:00:29]} 5. d3 {[%emt 0:00:27]} Bg7 {[%emt 0:01:51]} 6. f4 {[%emt 0:00:25]} d6 {[%emt 0:00:09]} 7. Nf3 {[%emt 0:01:51]} Nf6 {[%emt 0:00:31]} 8. O-O {[%emt 0:01:14]} O-O {[%emt 0:00:57]} 9. Qe1 {[%emt 0:02:05]} Ne8 {[%emt 0:21:13]} 10. Kh1 {[%emt 0:01:50]} Nc7 {[%emt 0:02:32]} 11. Bd2 {[%emt 0:20:42]} Rb8 {[%emt 0:02:44]} 12. b3 {[%emt 0:07:29]} f5 {[%emt 0:01:24]} 13. e5 {[%emt 0:05:09]} Ne6 {[%emt 0:06:56]} 14. Qf2 {[%emt 0:23:34]} Nd4 {[%emt 0:01:17]} 15. Nxd4 {[%emt 0:00:00]} cxd4 {[%emt 0:00:17]} 16. Qxd4 {[%emt 0:00:00]} dxe5 {[%emt 0:05:36]} 17. Qc4+ {[%emt 0:00:20]} Kh8 {[%emt 0:02:49]} 18. fxe5 {[%emt 0:04:03]} Qa5 {[%emt 0:10:13]} 19. Rae1 {[%emt 0:12:20]} Bd7 {[%emt 0:02:07]} 20. Qh4 {[%emt 0:02:03]} Qc5 {[%emt 0:02:21]} 21. d4 {[%emt 0:02:39]} Qa3 {[%emt 0:03:57]} 22. Bc1 {[%emt 0:01:13]} Qb4 {[%emt 0:00:15]} 23. Na4 {[%emt 0:08:58]} Rbe8 {[%emt 0:01:35]} 24. Nc5 {[%emt 0:00:04]} Bc8 {[%emt 0:00:46]} 25. Rf3 {[%emt 0:04:36]} Qa5 {[%emt 0:01:49]} 26. a4 {[%emt 0:00:41]} Qd8 {[%emt 0:01:55]} 27. Rh3 {[%emt 0:00:00]} h5 {[%emt 0:05:07]} 28. Rg3 {[%emt 0:00:38]} e6 {[%emt 0:00:28]} 29. Bg5 {[%emt 0:00:56]} Qa5 {[%emt 0:00:51]} 30. c3 {[%emt 0:00:46]} Qc7 {[%emt 0:02:27]} 31. Rf1 {[%emt 0:00:54]} Qf7 {[%emt 0:01:48]} 32. Ne4 {[%emt 0:00:26]} Ba6 {[%emt 0:01:18]} 33. Nd6 {[%emt 0:00:25]} Bxf1 {[%emt 0:00:04]} 34. Nxf7+ {[%emt 0:00:00]} Rxf7 {[%emt 0:00:20]} 35. Bf4 {[%emt 0:02:00]} Be2 {[%emt 0:01:39]} 36. Qg5 {[%emt 0:01:37]} Rb8 {[%emt 0:00:21]} 37. Qxg6 {[%emt 0:00:08]} Rxb3 {[%emt 0:00:20]} 38. h3 {[%emt 0:00:16]} Re7 {[%emt 0:01:24]} 39. Bh6 {[%emt 0:01:34]} 1-0

[Event "VI Sunway Sitges Open 2019"]
[Site "Sitges"]
[Date "2019.12.13"]
[Round "1.27"]
[White "Goormachtigh, Johan"]
[Black "Wagner, Dennis"]
[Result "0-1"]
[ECO "D24"]
[WhiteElo "2200"]
[BlackElo "2578"]
[Annotator "ChessBase"]
[PlyCount "82"]
[EventDate "2019.12.13"]
[EventType "swiss"]
[EventCountry "ESP"]
[SourceTitle "playchess.com"]
[Source "ChessBase"]
[SourceQuality "1"]
[TimeControl "40/5400+30:1800+30"]

1. d4 {[%emt 0:00:04]} Nf6 {[%emt 0:00:05]} 2. c4 {[%emt 0:00:22]} e6 {[%emt 0:00:05]} 3. Nf3 {[%emt 0:00:45]} d5 {[%emt 0:00:06]} 4. Nc3 {[%emt 0:00:51]} dxc4 {[%emt 0:00:06]} 5. e3 {[%emt 0:03:30]} a6 {[%emt 0:00:26]} 6. a4 {[%emt 0:01:40]} b6 {[%emt 0:00:08]} 7. Bxc4 {[%emt 0:00:11]} Bb7 {[%emt 0:00:04]} 8. O-O {[%emt 0:01:56]} Bb4 {[%emt 0:00:06]} 9. Qe2 {[%emt 0:16:10]} O-O {[%emt 0:00:49]} 10. Rd1 {[%emt 0:02:25]} Qe7 {[%emt 0:09:11]} 11. Bd3 {[%emt 0:15:48]} Nbd7 {[%emt 0:11:06]} 12. e4 {[%emt 0:02:05]} e5 {[%emt 0:00:09]} 13. d5 {[%emt 0:09:06]} Nc5 {[%emt 0:06:09]} 14. Bc2 {[%emt 0:08:07]} a5 {[%emt 0:03:28]} 15. Bg5 {[%emt 0:09:58]} h6 {[%emt 0:01:46]} 16. Bh4 {[%emt 0:00:22]} Bxc3 {[%emt 0:05:30]} 17. bxc3 {[%emt 0:00:07]} Ba6 {[%emt 0:00:06]} 18. Qe3 {[%emt 0:03:15]} Qd6 {[%emt 0:09:44]} 19. Bg3 {[%emt 0:02:31]} Ng4 {[%emt 0:01:28]} 20. Qd2 {[%emt 0:00:25]} Rae8 {[%emt 0:00:50]} 21. h3 {[%emt 0:04:33]} Nf6 {[%emt 0:00:04]} 22. Qe3 {[%emt 0:00:57]} Nh5 {[%emt 0:25:54]} 23. Nh4 {[%emt 0:05:57]} Nxg3 {[%emt 0:03:30]} 24. Qxg3 {[%emt 0:00:51]} Bc8 {[%emt 0:02:39]} 25. Re1 {[%emt 0:02:55]} Re7 {[%emt 0:02:06]} 26. Bd1 {[%emt 0:00:52]} Kh7 {[%emt 0:02:31]} 27. Bg4 {[%emt 0:01:27]} g6 {[%emt 0:00:02]} 28. Bxc8 {[%emt 0:01:09]} Rxc8 {[%emt 0:00:02]} 29. c4 {[%emt 0:01:28]} Rce8 {[%emt 0:06:15]} 30. Qc3 {[%emt 0:04:47]} Qd7 {[%emt 0:07:42]} 31. Qc2 {[%emt 0:00:08]} Rf8 {[%emt 0:02:39]} 32. g4 {[%emt 0:00:53]} h5 {[%emt 0:00:30]} 33. f3 {[%emt 0:00:28]} hxg4 {[%emt 0:00:04]} 34. hxg4 {[%emt 0:00:12]} Kg7 {[%emt 0:00:04]} 35. Kg2 {[%emt 0:00:25]} Rh8 {[%emt 0:00:09]} 36. Rh1 {[%emt 0:00:15]} Ree8 {[%emt 0:00:04]} 37. Qd2 {[%emt 0:01:08]} Qe7 {[%emt 0:02:37]} 38. Kg3 {[%emt 0:00:36]} Nb3 {[%emt 0:00:09]} 39. Qc3 {[%emt 0:00:37]} Nxa1 {[%emt 0:00:02]} 40. Qxa1 {[%emt 0:00:08]} Qg5 {[%emt 0:01:02]} 41. Qc1 {[%emt 0:00:30]} f6 {[%emt 0:10:10]} 0-1